bitfinex-derivatives/quotes_BTCF0:USTF0_20250108
["timestamp","ask_amount","ask_price","bid_price","bid_amount"]
[1736377432406,0.3608,95090.0,95076.0,0.2089]
[1736377432603,0.052599,95083.0,95076.0,0.261502]
[1736377432804,0.052599,95083.0,95077.0,0.052602]
[1736377433201,0.052599,95083.0,95078.0,0.0978]
[1736377434003,0.052599,95083.0,95078.0,0.150401]
[1736377434902,0.052599,95083.0,95078.0,0.152401]
[1736377435101,0.052599,95083.0,95078.0,0.16555692]
[1736377435699,0.052599,95083.0,95078.0,0.16755692]
[1736377437892,0.052599,95082.0,95078.0,0.16755692]
[1736377439108,0.052599,95082.0,95078.0,0.16655692]
[1736377441698,0.46702422,95090.0,95078.0,0.16655692]
[1736377441898,0.0526,95080.0,95078.0,0.16655692]
[1736377442508,0.0526,95079.0,95078.0,0.003]
[1736377443695,0.06545197,95079.0,95078.0,0.003]
[1736377444412,0.06545197,95079.0,95078.0,0.002]
[1736377444798,0.06745197,95079.0,95078.0,0.001]
[1736377445198,0.06745197,95079.0,95059.0,0.04207]
[1736377445199,0.052611,95060.0,95059.0,0.04207]
[1736377445406,0.413411,95060.0,95059.0,0.04207]
[1736377446604,0.3608,95060.0,95051.0,0.1011]
[1736377446805,0.3608,95052.0,95051.0,0.1011]
[1736377447199,0.3608,95052.0,95031.0,0.00157809]
[1736377447200,0.3608,95052.0,95046.0,0.01279604]
[1736377447411,0.052624,95038.0,95034.0,0.1051]
[1736377447607,0.3608,95052.0,95034.0,0.1051]
[1736377447608,0.052624,95037.0,95034.0,0.1051]
[1736377447812,0.052624,95036.0,95034.0,0.11797575]
[1736377448007,0.052624,95036.0,95034.0,0.11852]
[1736377448514,0.052624,95036.0,95034.0,0.11952]
[1736377448711,0.052624,95036.0,95034.0,0.01442]
[1736377449315,0.053624,95036.0,95034.0,0.02042]
[1736377450716,0.054624,95036.0,95034.0,0.02042]
[1736377451016,0.053624,95036.0,95034.0,0.01542]
[1736377451210,0.052624,95036.0,95034.0,0.01542]
[1736377456311,0.3608,95047.0,95034.0,0.01542]
[1736377456609,0.2217,95048.0,95044.0,0.05262]
[1736377456811,0.2217,95048.0,95045.0,0.3083]
[1736377457918,0.2247,95048.0,95045.0,0.3083]
[1736377458109,0.003,95048.0,95045.0,0.3083]
[1736377458614,0.003,95048.0,95045.0,0.32308901]
[1736377459016,0.00157863,95056.0,95045.0,0.32408901]
[1736377459313,0.3608,95066.0,95061.0,0.05261]
[1736377459516,0.12588543,95073.0,95065.0,0.052608]
[1736377459818,0.12588543,95073.0,95072.0,0.3608]
[1736377460206,0.052603,95074.0,95072.0,0.3608]
[1736377461314,0.009,95073.0,95072.0,0.3608]
[1736377461717,0.052603,95074.0,95072.0,0.3618]
[1736377462314,0.052603,95074.0,95072.0,0.3628]
[1736377463314,0.052603,95074.0,95072.0,0.3638]
[1736377463808,0.052603,95074.0,95073.0,0.1027]
[1736377464522,0.052603,95074.0,95072.0,0.3628]
[1736377464910,0.052603,95074.0,95072.0,0.3618]
[1736377465119,0.052603,95074.0,95073.0,0.001]
[1736377466317,0.052603,95074.0,95073.0,0.002]
[1736377466523,0.052603,95074.0,95073.0,0.001]
[1736377467824,0.052603,95074.0,95073.0,0.002]
[1736377471133,0.052603,95074.0,95073.0,0.0153]
[1736377472023,0.052603,95074.0,95073.0,0.0143]
[1736377472223,0.052603,95074.0,95073.0,0.0153]
[1736377473622,0.052603,95074.0,95073.0,0.3761]
[1736377492963,0.052603,95074.0,95073.0,0.3751]
[1736377493469,0.052603,95074.0,95073.0,0.3741]
[1736377495559,0.21001906,95074.0,95073.0,0.3741]
[1736377496258,0.21001906,95074.0,95073.0,0.3751]
[1736377496657,0.21001906,95074.0,95073.0,0.3761]
[1736377502767,0.052603,95074.0,95073.0,0.3761]
[1736377506370,0.052603,95074.0,95073.0,0.0153]
[1736377506576,0.052603,95074.0,95073.0,0.3751]
[1736377506870,0.053603,95074.0,95073.0,0.3741]
[1736377507459,0.055603,95074.0,95073.0,0.3741]
[1736377508062,0.055603,95074.0,95073.0,0.0133]
[1736377509067,0.054603,95074.0,95073.0,0.0133]
[1736377509266,0.10677078,95074.0,95073.0,0.0133]
[1736377510673,0.10577078,95074.0,95073.0,0.0133]
[1736377510870,0.10677078,95074.0,95073.0,0.0133]
[1736377512473,0.10577078,95074.0,95073.0,0.0133]
[1736377512777,0.10677078,95074.0,95073.0,0.0133]
[1736377512978,0.10677078,95074.0,95073.0,0.065904]
[1736377514070,0.10477078,95074.0,95073.0,0.065904]
[1736377514277,0.10677078,95074.0,95073.0,0.065904]
[1736377515379,0.21344804,95074.0,95073.0,0.065904]
[1736377516973,0.055603,95074.0,95073.0,0.065904]
[1736377518675,0.055603,95074.0,95073.0,0.25380545]
[1736377518869,0.003,95074.0,95073.0,0.25380545]
[1736377519082,0.052592,95096.0,95087.0,0.052596]
[1736377519273,0.052592,95096.0,95087.0,1.552596]
[1736377519467,0.052592,95096.0,95087.0,0.052596]
[1736377519673,0.052585,95107.0,95087.0,0.052596]
[1736377519976,0.052585,95107.0,95102.0,0.052587]
[1736377520282,0.052585,95107.0,95103.0,0.052587]
[1736377520486,0.052585,95107.0,95103.0,0.065557]
[1736377520774,0.3608,95108.0,95103.0,0.01297]
[1736377520979,0.3608,95108.0,95106.0,0.052586]
[1736377521678,0.052581,95114.0,95107.0,0.052585]
[1736377521883,0.3608,95120.0,95104.0,0.46699398]
[1736377522073,0.052578,95121.0,95110.0,0.10619398]
[1736377522781,0.12602136,95112.0,95111.0,0.052583]
[1736377523375,0.12602136,95112.0,95111.0,1.552583]
[1736377523979,0.009,95112.0,95111.0,1.501]
[1736377524474,0.009,95112.0,95111.0,1.553583]
[1736377524875,0.012,95112.0,95111.0,0.053583]
[1736377525384,0.012,95112.0,95111.0,1.553583]
[1736377528186,0.012,95112.0,95111.0,0.053583]
[1736377528886,0.012,95112.0,95111.0,1.553583]
[1736377532583,0.052576,95123.0,95111.0,1.553583]
[1736377532792,0.052576,95123.0,95121.0,0.3608]
[1736377533090,0.052573,95130.0,95121.0,0.3608]
[1736377533894,0.1037,95133.0,95121.0,0.3608]
[1736377534190,0.009,95123.0,95121.0,0.3618]
[1736377534692,0.052573,95129.0,95121.0,0.3618]
[1736377535394,0.052576,95123.0,95121.0,0.37414908]
[1736377536689,0.052576,95123.0,95121.0,0.37314908]
[1736377536891,0.057576,95123.0,95121.0,0.37414908]
[1736377537991,0.052576,95123.0,95121.0,0.37614908]
[1736377538294,0.052576,95123.0,95121.0,0.37714908]
[1736377538595,0.052576,95123.0,95121.0,0.37614908]
[1736377540294,0.052576,95123.0,95121.0,0.37514908]
[1736377540485,0.052573,95129.0,95122.0,0.052577]
[1736377540687,0.1037,95133.0,95122.0,0.052577]
[1736377540886,0.052575,95126.0,95122.0,0.052577]
[1736377541488,0.1037,95133.0,95122.0,0.052577]
[1736377541795,0.052575,95125.0,95122.0,0.052577]
[1736377543291,0.052575,95125.0,95122.0,0.053577]
[1736377544492,0.052575,95125.0,95123.0,0.052576]
[1736377545690,0.052575,95125.0,95123.0,0.053576]
[1736377545886,0.052575,95125.0,95123.0,0.054576]
[1736377546193,0.3608,95128.0,95123.0,0.054576]
[1736377546389,0.052576,95124.0,95123.0,0.002]
[1736377547289,0.052576,95124.0,95123.0,0.001]
[1736377548090,0.053576,95124.0,95123.0,0.001]
[1736377548493,0.052576,95124.0,95123.0,0.001]
[1736377548688,0.039737,95122.0,95121.0,0.01234908]
[1736377548889,0.052579,95118.0,95115.0,0.05258]
[1736377549088,0.019079,95133.0,95115.0,0.05258]
[1736377549291,0.052574,95127.0,95126.0,0.3608]
[1736377550891,0.06508978,95127.0,95126.0,0.3608]
[1736377551093,0.05258,95116.0,95115.0,0.18756373]
[1736377551393,0.052585,95107.0,95106.0,0.30893824]
[1736377551598,0.052585,95107.0,95097.0,0.37570278]
[1736377551599,0.05259,95098.0,95097.0,0.37570278]
[1736377552188,0.0696818,95107.0,95095.0,0.3608]
[1736377552394,0.0696818,95107.0,95080.0,0.50616163]
[1736377552395,0.3608,95100.0,95080.0,0.43647983]
[1736377552593,0.052599,95081.0,95080.0,0.50616163]
[1736377552792,0.052599,95081.0,95080.0,0.43647983]
[1736377552991,0.0696818,95090.0,95071.0,0.0696818]
[1736377553188,0.052599,95081.0,95080.0,0.0696818]
[1736377553391,0.052601,95078.0,95072.0,0.06480645]
[1736377553592,0.052601,95078.0,95073.0,0.052603]
[1736377553793,0.3608,95091.0,95073.0,0.052603]
[1736377553794,0.052603,95075.0,95073.0,0.052603]
[1736377554595,0.052606,95069.0,95065.0,0.3608]
[1736377555101,0.052606,95069.0,95060.0,0.00096]
[1736377555293,0.3,95069.0,95050.0,0.24978619]
[1736377555500,0.052616,95051.0,95050.0,0.24978619]
[1736377556399,0.3608,95058.0,95044.0,0.3608]
[1736377556597,0.3608,95058.0,95035.0,0.052624]
[1736377556798,0.3608,95058.0,95030.0,0.10629985]
[1736377556799,0.5825,95058.0,95036.0,0.052624]
[1736377556994,0.59492785,95058.0,95036.0,0.052624]
[1736377557194,0.052622,95040.0,95036.0,0.052624]
[1736377557403,0.59492785,95058.0,95050.0,0.005]
[1736377557800,0.052616,95051.0,95050.0,0.005]
[1736377558000,0.59656785,95058.0,95036.0,0.060624]
[1736377558309,0.052624,95037.0,95036.0,0.008]
[1736377558806,0.052624,95036.0,95032.0,0.37328007]
[1736377559393,0.052625,95036.0,95032.0,0.37328007]
[1736377559600,0.052625,95035.0,95032.0,0.37328007]
[1736377560304,0.052625,95035.0,95032.0,0.3608]
[1736377560803,0.052625,95035.0,95032.0,0.3648]
[1736377561002,0.053625,95035.0,95032.0,0.3738]
[1736377561309,0.053625,95035.0,95032.0,0.426426]
[1736377561801,0.053625,95035.0,95032.0,0.787226]
[1736377562009,0.001,95035.0,95034.0,0.052625]
[1736377562205,0.152622,95040.0,95034.0,0.052625]
[1736377562503,0.152622,95040.0,95035.0,1.5]
[1736377563408,0.152622,95040.0,95034.0,0.052625]
[1736377563610,0.153622,95040.0,95034.0,0.061625]
[1736377563811,0.153622,95040.0,95034.0,0.065625]
[1736377564205,0.052623,95039.0,95034.0,0.065625]
[1736377564404,0.001,95040.0,95035.0,0.008]
[1736377564605,0.001,95040.0,95036.0,0.052624]
[1736377566507,0.052621,95043.0,95036.0,0.052624]
[1736377566711,0.10629985,95050.0,95042.0,0.3608]
[1736377566901,0.052618,95049.0,95042.0,0.3608]
[1736377567107,0.052618,95049.0,95042.0,0.7216]
[1736377567701,0.052618,95049.0,95047.0,0.052618]
[1736377567907,0.2217,95058.0,95048.0,0.3109]
[1736377568216,0.052614,95054.0,95053.0,0.3608]
[1736377570016,0.052614,95054.0,95053.0,0.3618]
[1736377570609,0.152611,95060.0,95059.0,0.052612]
[1736377570806,0.1,95060.0,95059.0,0.052612]
[1736377571207,0.052609,95064.0,95063.0,0.052609]
[1736377571409,0.1,95080.0,95063.0,0.3608]
[1736377571718,0.052608,95066.0,95065.0,0.413408]
[1736377571912,0.20629985,95080.0,95065.0,0.413408]
[1736377572306,0.1,95080.0,95069.0,0.052606]
[1736377572515,0.1,95080.0,95079.0,0.0526]
[1736377572722,0.1,95100.0,95099.0,0.052589]
[1736377573014,0.1,95100.0,95099.0,0.3608]
[1736377573911,0.1,95100.0,95099.0,0.3618]
[1736377574419,0.1,95100.0,95099.0,0.414389]
[1736377574714,0.1,95100.0,95099.0,0.415389]
[1736377575715,0.2217,95110.0,95099.0,0.415389]
[1736377575912,0.2217,95110.0,95109.0,0.3608]
[1736377576213,0.274283,95110.0,95109.0,0.3608]
[1736377577922,0.053583,95110.0,95109.0,0.3608]
[1736377580125,0.052583,95110.0,95109.0,0.3608]
[1736377580324,0.054583,95110.0,95109.0,0.3608]
[1736377583926,0.052583,95110.0,95109.0,0.3608]
[1736377584624,0.053583,95110.0,95109.0,0.3608]
[1736377586413,0.052583,95110.0,95109.0,0.3608]
[1736377586615,0.054583,95110.0,95109.0,0.3608]
[1736377587013,0.052583,95110.0,95109.0,0.3608]
[1736377587212,0.054583,95110.0,95109.0,0.3608]
[1736377587613,0.052584,95109.0,95108.0,0.03679]
[1736377587824,0.153884,95109.0,95108.0,0.01051]
[1736377588126,0.263084,95109.0,95108.0,0.01051]
[1736377589822,0.269084,95109.0,95108.0,0.01151]
[1736377592814,0.28108135,95109.0,95108.0,0.01151]
[1736377593018,0.49678135,95109.0,95108.0,0.01051]
[1736377593217,0.50278135,95109.0,95108.0,0.01151]
[1736377593521,0.60578135,95109.0,95108.0,0.01151]
[1736377594323,0.60578135,95109.0,95108.0,0.01051]
[1736377596427,0.60778135,95109.0,95108.0,0.01151]
[1736377596917,0.60678135,95109.0,95108.0,0.01151]
[1736377597427,0.59978135,95109.0,95108.0,0.01051]
[1736377597722,0.60778135,95109.0,95108.0,0.01151]
[1736377599925,0.59978135,95109.0,95108.0,0.01051]
[1736377600125,0.60678135,95109.0,95108.0,0.01151]
[1736377600526,0.65793904,95109.0,95108.0,0.01051]
[1736377600822,0.65893904,95109.0,95108.0,0.01151]
[1736377601229,0.65593904,95109.0,95108.0,0.01051]
[1736377602824,0.65893904,95109.0,95108.0,0.01151]
[1736377603531,0.65593904,95109.0,95108.0,0.01051]
[1736377603731,0.34243904,95109.0,95108.0,0.01051]
[1736377603935,0.33743904,95109.0,95108.0,0.01051]
[1736377604231,0.34543904,95109.0,95108.0,1.51151]
[1736377604424,0.34543904,95109.0,95108.0,0.01151]
[1736377604625,0.34243904,95109.0,95108.0,0.01051]
[1736377605222,0.44492459,95109.0,95108.0,0.01051]
[1736377606133,0.44792459,95109.0,95108.0,0.01151]
[1736377606828,0.44492459,95109.0,95108.0,0.01051]
[1736377607135,0.43292724,95109.0,95108.0,0.01051]
[1736377607330,0.43592724,95109.0,95108.0,0.01151]
[1736377608130,0.33344169,95109.0,95108.0,0.01151]
[1736377609536,0.33344169,95109.0,95108.0,0.01051]
[1736377609537,0.32544169,95109.0,95108.0,0.01051]
[1736377610932,0.10374169,95109.0,95108.0,0.01051]
[1736377616143,0.052584,95108.0,95107.0,0.3608]
[1736377618043,0.10374169,95108.0,95107.0,0.3608]
[1736377618641,0.05115769,95108.0,95105.0,0.3187]
[1736377618842,0.052586,95106.0,95105.0,0.3187]
[1736377619041,0.052586,95106.0,95105.0,0.6795]
[1736377621038,0.053586,95106.0,95105.0,0.69128663]
[1736377621643,0.053586,95106.0,95105.0,2.19128663]
[1736377622338,0.21124127,95106.0,95105.0,2.19128663]
[1736377622737,0.21024127,95106.0,95105.0,2.19228663]
[1736377623447,0.052586,95106.0,95105.0,2.19228663]
[1736377623641,0.052586,95106.0,95105.0,2.19328663]
[1736377625632,0.052586,95106.0,95105.0,2.24587263]
[1736377627152,0.052586,95106.0,95105.0,2.27215263]
[1736377629437,0.052586,95106.0,95105.0,2.27115263]
[1736377629647,0.052586,95106.0,95105.0,2.27015263]
[1736377630353,0.052586,95106.0,95105.0,2.27115263]
[1736377630554,0.052586,95106.0,95105.0,2.28056263]
[1736377630947,0.052586,95106.0,95105.0,2.27956263]
[1736377631148,0.052586,95106.0,95105.0,2.28056263]
[1736377631848,0.052586,95106.0,95105.0,2.27956263]
[1736377632049,0.052586,95106.0,95105.0,2.28056263]
[1736377633148,0.15765527,95110.0,95109.0,0.052584]
[1736377633348,0.21023827,95110.0,95109.0,0.052584]
[1736377634454,0.053583,95110.0,95109.0,0.052584]
[1736377637158,0.053583,95110.0,95109.0,0.413384]
[1736377637360,0.10473247,95110.0,95109.0,0.413384]
[1736377638761,0.10473247,95110.0,95109.0,1.913384]
[1736377639164,0.10373247,95110.0,95109.0,0.413384]
[1736377639463,0.10473247,95110.0,95109.0,0.413384]
[1736377640256,0.053583,95110.0,95109.0,0.413384]
[1736377640650,0.001,95110.0,95109.0,0.413384]
[1736377640849,0.052582,95113.0,95109.0,0.3608]
[1736377641065,0.052582,95113.0,95112.0,0.052582]
[1736377641965,0.21026797,95113.0,95112.0,0.052582]
[1736377642165,0.15768597,95113.0,95112.0,0.052582]
[1736377643152,0.002,95113.0,95112.0,0.052582]
[1736377645769,0.15768597,95119.0,95118.0,0.052579]
[1736377645969,0.152578,95120.0,95118.0,0.413379]
[1736377646369,0.1,95120.0,95118.0,0.413379]
[1736377647175,0.18915513,95132.0,95118.0,0.413379]
[1736377647371,0.18915513,95132.0,95131.0,0.413372]
[1736377648476,0.18915513,95132.0,95131.0,0.423882]
[1736377648682,0.12597359,95137.0,95131.0,0.37131]
[1736377648881,0.12597359,95137.0,95136.0,0.413369]
[1736377650085,0.1,95140.0,95136.0,0.413369]
[1736377650385,0.1,95140.0,95139.0,0.052567]
[1736377652571,0.109,95140.0,95139.0,0.052567]
[1736377653276,0.109,95140.0,95139.0,0.053567]
[1736377657878,0.23037359,95159.0,95139.0,0.001]
[1736377658087,0.28292959,95159.0,95158.0,0.3608]
[1736377658578,0.156956,95159.0,95158.0,0.3608]
[1736377658779,0.156956,95159.0,95158.0,0.3692]
[1736377659479,0.165956,95159.0,95158.0,0.3702]
[1736377660686,0.165956,95159.0,95158.0,0.3712]
[1736377664781,0.165956,95159.0,95158.0,0.423757]
[1736377665285,0.009,95159.0,95158.0,0.423757]
[1736377665485,0.12597359,95168.0,95167.0,0.052552]
[1736377665691,0.10136447,95169.0,95168.0,0.052551]
[1736377665993,0.10136447,95169.0,95168.0,1.552551]
[1736377666179,0.052546,95178.0,95168.0,1.9712]
[1736377666384,0.052546,95178.0,95177.0,0.413346]
[1736377670490,0.052546,95178.0,95176.0,0.02626]
[1736377670695,0.052551,95168.0,95167.0,0.3608]
[1736377673089,0.052556,95159.0,95158.0,0.3692]
[1736377673693,0.052556,95159.0,95158.0,0.3797]
[1736377674790,0.052556,95159.0,95158.0,0.3807]
[1736377674985,0.052556,95159.0,95158.0,0.3723]
[1736377675198,0.052556,95159.0,95158.0,0.3713]
[1736377677098,0.052556,95159.0,95142.0,0.3608]
[1736377677099,0.052565,95143.0,95142.0,0.3608]
[1736377678392,0.052565,95143.0,95142.0,0.3618]
[1736377678592,0.052565,95143.0,95142.0,0.001]
[1736377679800,0.272165,95143.0,95142.0,0.001]
[1736377679986,0.272165,95143.0,95141.0,0.00172]
[1736377680392,0.1075,95142.0,95141.0,0.00172]
[1736377692708,0.052565,95143.0,95141.0,0.00172]
[1736377692915,0.052565,95143.0,95141.0,0.36252]
[1736377693101,0.2217,95148.0,95146.0,0.052563]
[1736377693608,0.2217,95169.0,95154.0,0.052559]
[1736377693803,0.052555,95161.0,95160.0,0.3608]
[1736377695106,0.00157672,95166.0,95160.0,0.3608]
[1736377695306,0.00157672,95166.0,95165.0,0.052553]
[1736377695705,0.052552,95167.0,95165.0,0.052553]
[1736377695904,0.052546,95177.0,95160.0,0.37199335]
[1736377696208,0.052545,95179.0,95176.0,0.3608]
[1736377696405,0.052545,95179.0,95177.0,0.1083]
[1736377698215,0.052545,95179.0,95178.0,0.02626]
[1736377698809,0.052545,95179.0,95178.0,0.13786]
[1736377700610,0.052545,95179.0,95178.0,0.14186]
[1736377701507,0.052545,95179.0,95178.0,0.14355]
[1736377702608,0.052545,95179.0,95178.0,0.03195]
[1736377703015,0.052545,95179.0,95178.0,0.00569]
[1736377704110,0.052545,95179.0,95178.0,0.00269]
[1736377706222,0.052545,95179.0,95178.0,0.00169]
[1736377706720,0.06358093,95179.0,95178.0,0.00169]
[1736377709720,0.06358093,95179.0,95161.0,0.1091]
[1736377709721,0.052555,95162.0,95161.0,0.1091]
[1736377711121,0.052555,95162.0,95161.0,0.1101]
[1736377713215,0.052555,95162.0,95161.0,0.1131]
[1736377714613,0.3608,95162.0,95140.0,0.10604496]
[1736377714826,0.052557,95157.0,95146.0,0.1065]
[1736377715029,0.052558,95156.0,95146.0,0.1065]
[1736377716129,0.052558,95156.0,95146.0,0.159063]
[1736377716621,0.052558,95156.0,95155.0,0.1064]
[1736377717126,0.052558,95156.0,95155.0,0.1054]
[1736377717313,0.052558,95156.0,95155.0,0.1064]
[1736377717725,0.052558,95156.0,95155.0,0.1054]
[1736377718029,0.052558,95156.0,95155.0,0.1064]
[1736377722534,0.052558,95156.0,95155.0,0.1054]
[1736377725737,0.053558,95156.0,95155.0,0.1054]
[1736377726526,0.052558,95156.0,95155.0,0.1054]
[1736377726731,0.053558,95156.0,95155.0,0.1054]
[1736377728226,0.21027098,95156.0,95155.0,0.1054]
[1736377729837,0.053558,95156.0,95155.0,0.1054]
[1736377733136,0.10468934,95156.0,95155.0,0.1054]
[1736377734840,0.052562,95149.0,95148.0,0.3608]
[1736377736230,0.053562,95149.0,95148.0,0.3608]
[1736377738746,0.20990554,95149.0,95148.0,0.3608]
[1736377738929,0.21090554,95149.0,95148.0,0.3608]
[1736377739532,0.20990554,95149.0,95148.0,0.3608]
[1736377739736,0.21090554,95149.0,95148.0,0.3608]
[1736377740133,0.22224678,95149.0,95148.0,0.3608]
[1736377740437,0.11603506,95149.0,95148.0,0.3608]
[1736377741845,0.06490324,95149.0,95148.0,0.3608]
[1736377742439,0.052568,95137.0,95136.0,0.3608]
[1736377742744,0.05257,95135.0,95134.0,0.18688789]
[1736377743345,0.05257,95135.0,95121.0,0.4647]
[1736377743346,0.052575,95125.0,95124.0,0.18688789]
[1736377744738,0.052575,95125.0,95121.0,0.4647]
[1736377744739,0.052577,95122.0,95121.0,0.4647]
[1736377745042,0.052581,95114.0,95113.0,0.18688789]
[1736377745946,0.052581,95114.0,95112.0,0.1023]
[1736377745947,0.21008986,95114.0,95112.0,0.1023]
[1736377746338,0.052583,95110.0,95109.0,0.1039]
[1736377748341,0.053583,95110.0,95109.0,0.1039]
[1736377749145,0.12684396,95110.0,95109.0,0.156484]
[1736377749445,0.052581,95114.0,95111.0,0.052583]
[1736377749747,0.052581,95114.0,95113.0,0.052582]
[1736377750448,0.15750886,95127.0,95113.0,0.3608]
[1736377750637,0.21008286,95127.0,95126.0,0.3608]
[1736377751646,0.052574,95127.0,95126.0,0.3608]
[1736377751848,0.053574,95127.0,95126.0,0.3608]
[1736377753451,0.052574,95127.0,95126.0,0.3618]
[1736377754436,0.052574,95127.0,95126.0,0.3648]
[1736377755654,0.052574,95127.0,95126.0,0.3732]
[1736377756950,0.37920886,95144.0,95126.0,0.38434983]
[1736377757142,0.37920886,95144.0,95139.0,0.3608]
[1736377757143,0.052567,95140.0,95139.0,0.3608]
[1736377763650,0.052567,95140.0,95139.0,0.3628]
[1736377767464,0.052567,95140.0,95139.0,0.3618]
[1736377768864,0.052574,95127.0,95126.0,0.3692]
[1736377769060,0.052574,95127.0,95126.0,0.3608]
[1736377772156,0.06359651,95127.0,95126.0,0.3608]
[1736377779065,0.052578,95120.0,95118.0,0.39549]
[1736377779862,0.052578,95120.0,95118.0,0.38708]
[1736377780267,0.052578,95120.0,95118.0,0.3608]
[1736377780667,0.052578,95120.0,95119.0,0.47328]
[1736377781467,0.052578,95120.0,95119.0,0.002]
[1736377784275,0.052584,95108.0,95103.0,0.18688789]
[1736377785267,0.052584,95108.0,95099.0,0.01086673]
[1736377785467,0.052584,95108.0,95107.0,0.36921]
[1736377786267,0.052584,95108.0,95107.0,0.37121]
[1736377786977,0.052584,95108.0,95107.0,0.37821]
[1736377788675,0.06355271,95108.0,95107.0,0.37821]
[1736377789268,0.052584,95108.0,95107.0,0.37821]
[1736377789473,0.052582,95113.0,95107.0,0.37821]
[1736377789674,0.1573195,95119.0,95107.0,0.37821]
[1736377789675,0.052581,95114.0,95113.0,0.052581]
[1736377791175,0.052581,95114.0,95113.0,0.056581]
[1736377793372,0.052581,95114.0,95113.0,0.057581]
[1736377793879,0.052581,95114.0,95113.0,0.005]
[1736377795482,0.052581,95114.0,95113.0,0.03128]
[1736377798281,0.052581,95114.0,95113.0,0.39208]
[1736377804383,0.052581,95114.0,95113.0,0.3658]
[1736377805579,0.10372957,95114.0,95113.0,0.3658]
[1736377809173,0.2102476,95114.0,95113.0,0.3658]
[1736377811886,0.052581,95114.0,95113.0,0.3658]
[1736377812585,0.052581,95114.0,95113.0,0.005]
[1736377814286,0.10373006,95114.0,95113.0,0.005]
[1736377815696,0.052581,95114.0,95113.0,0.005]
[1736377817086,0.2102474,95114.0,95113.0,0.005]
[1736377819793,0.1037304,95114.0,95113.0,0.3658]
[1736377820898,0.052581,95114.0,95113.0,0.3658]
[1736377822087,0.1037304,95114.0,95113.0,0.3658]
[1736377822791,0.1037304,95114.0,95113.0,0.005]
[1736377823097,0.1037304,95114.0,95113.0,0.3658]
[1736377824594,0.29181474,95114.0,95113.0,0.3658]
[1736377827091,0.29181474,95114.0,95113.0,0.005]
[1736377827298,0.29181474,95114.0,95113.0,0.3658]
[1736377829083,0.1037304,95114.0,95113.0,0.3658]
[1736377830795,0.052581,95114.0,95113.0,0.3658]
[1736377832199,0.1037304,95114.0,95113.0,0.3658]
[1736377843997,0.1037304,95114.0,95113.0,0.005]
[1736377844204,0.1037304,95114.0,95113.0,0.3658]
[1736377844500,0.10782308,95114.0,95113.0,0.3658]
[1736377847398,0.29719604,95114.0,95113.0,0.3658]
[1736377847998,0.29719604,95114.0,95113.0,0.005]
[1736377848202,0.29719604,95114.0,95113.0,0.3658]
[1736377849007,0.10782308,95114.0,95113.0,0.3658]
[1736377850203,0.05667368,95114.0,95113.0,0.3658]
[1736377851605,0.10782308,95114.0,95113.0,0.3658]
[1736377854300,0.2005993,95114.0,95113.0,0.3658]
[1736377855607,0.10782308,95114.0,95113.0,0.3658]
[1736377857105,0.05667368,95114.0,95113.0,0.3658]
[1736377858309,0.20060615,95114.0,95113.0,0.3658]
[1736377861611,0.10782308,95114.0,95113.0,0.3658]
[1736377861812,0.10782308,95114.0,95113.0,0.005]
[1736377862218,0.10782308,95114.0,95113.0,0.3658]
[1736377863022,0.05667368,95114.0,95113.0,0.3658]
[1736377864328,0.10782308,95114.0,95113.0,0.3658]
[1736377865624,0.05524208,95114.0,95113.0,0.418382]
[1736377865830,0.18940718,95119.0,95118.0,0.052579]
[1736377866014,0.18940718,95119.0,95118.0,0.413379]
[1736377866718,0.052573,95128.0,95127.0,0.052574]
[1736377866917,0.052573,95128.0,95127.0,0.413374]
[1736377867320,0.052578,95119.0,95118.0,0.37021]
[1736377867725,0.052578,95119.0,95118.0,0.3608]
[1736377868127,0.17863178,95119.0,95118.0,0.3608]
[1736377868622,0.17863178,95119.0,95118.0,0.3638]
[1736377869023,0.17863178,95119.0,95118.0,0.3628]
[1736377869226,0.052578,95119.0,95118.0,0.3628]
[1736377869428,0.052578,95119.0,95118.0,0.3638]
[1736377880035,0.052578,95119.0,95105.0,0.54877388]
[1736377880231,0.052583,95111.0,95105.0,0.54877388]
[1736377880833,0.21018575,95111.0,95105.0,0.3608]
[1736377881940,0.21018575,95111.0,95110.0,0.00933989]
[1736377882139,0.10373705,95111.0,95110.0,0.01133989]
[1736377882837,0.10373705,95111.0,95110.0,0.00933989]
[1736377883133,0.10373705,95111.0,95110.0,0.01133989]
[1736377883338,0.052583,95111.0,95110.0,0.01133989]
[1736377884630,0.10373705,95111.0,95110.0,0.01133989]
[1736377885438,0.46453705,95111.0,95110.0,8.9e-07]
[1736377887446,0.55102219,95111.0,95110.0,8.9e-07]
[1736377888034,0.77272219,95111.0,95110.0,8.9e-07]
[1736377888338,0.77272219,95111.0,95080.0,0.3608]
[1736377888339,0.052602,95077.0,95076.0,9.8e-07]
[1736377888641,0.052602,95077.0,95050.0,0.43607176]
[1736377888642,0.052609,95064.0,95050.0,0.43607176]
[1736377888943,0.413409,95064.0,95050.0,0.43607176]
[1736377889141,0.413409,95064.0,95063.0,0.18695379]
[1736377889439,0.413409,95064.0,95063.0,7.9e-07]
[1736377890239,0.2217,95063.0,95050.0,0.43607176]
[1736377890440,0.2217,95063.0,95038.0,0.00841]
[1736377890441,0.052623,95039.0,95038.0,0.00841]
[1736377890737,0.13941026,95048.0,95032.0,0.67252]
[1736377890936,0.052626,95034.0,95032.0,0.67184]
[1736377892342,0.1256025,95040.0,95039.0,0.052623]
[1736377892543,0.15700313,95049.0,95048.0,0.052618]
[1736377892734,0.15700313,95049.0,95048.0,0.413418]
[1736377892940,0.00056001,95070.0,95057.0,0.052613]
[1736377893136,0.58023173,95079.0,95057.0,0.052613]